bitfinex/quotes_ETHUSD_20220201
["timestamp","ask_amount","ask_price","bid_price","bid_amount"]
[1643714518301,1.34774067,2759.6,2758.4,0.90604]
[1643714518499,0.11584067,2759.6,2758.4,0.90604]
[1643714518905,0.89768556,2759.1,2758.4,0.90604]
[1643714519097,0.89768556,2759.1,2758.7,0.40325262]
[1643714520105,1.19768556,2759.1,2758.7,0.40325262]
[1643714520303,0.89768556,2759.1,2758.7,0.99999999]
[1643714520705,0.89768556,2759.1,2758.4,0.99999999]
[1643714521346,0.89768556,2759.1,2758.7,0.34233448]
[1643714521554,1.19768556,2759.1,2758.7,0.34233448]
[1643714521945,1.19768556,2759.1,2758.6,0.99999999]
[1643714522548,0.06744,2759.5,2759.0,0.99999999]
[1643714522750,0.06744,2759.5,2759.3,0.99999999]
[1643714522947,0.06744,2759.5,2759.0,0.523]
[1643714522948,0.11584067,2759.6,2759.0,1.52299999]
[1643714523148,0.11584067,2759.6,2759.0,0.523]
[1643714523149,0.06744,2759.4,2759.0,0.523]
[1643714523346,0.11584067,2759.6,2759.0,0.523]
[1643714523347,0.06743,2759.5,2759.0,0.523]
[1643714523546,0.91974538,2759.4,2759.0,0.523]
[1643714524155,0.91974538,2759.4,2759.0,0.91374052]
[1643714524348,0.01,2759.1,2759.0,0.91374052]
[1643714528299,0.01,2759.1,2759.0,0.39074052]
[1643714528744,0.01,2759.1,2759.0,0.57194052]
[1643714531151,0.01,2759.1,2759.0,0.39074052]
[1643714534401,0.11584067,2759.6,2759.0,3.27651052]
[1643714534607,0.11584067,2759.6,2759.5,0.99999999]
[1643714535203,0.04172051,2759.6,2759.5,3.70456999]
[1643714535405,0.04172051,2759.6,2759.5,2.86912258]
[1643714535603,0.001,2760.0,2759.5,2.88749995]
[1643714535806,0.001,2760.0,2759.9,0.99999999]
[1643714536046,0.001,2760.0,2759.9,3.23603999]
[1643714537049,0.001,2760.0,2759.9,2.32843862]
[1643714537254,0.001,2760.0,2759.9,1.80543862]
[1643714537649,0.001,2760.0,2759.9,0.8075]
[1643714537853,0.001,2760.0,2759.9,1.80543862]
[1643714538753,0.001,2760.0,2759.9,0.8075]
[1643714538953,0.001,2760.0,2759.6,1.99218]
[1643714539259,0.001,2760.0,2759.9,0.99793862]
[1643714539717,0.001,2760.0,2759.9,2.61194862]
[1643714539926,0.001,2760.0,2759.9,2.79304862]
[1643714540318,0.001,2760.0,2759.9,1.88753862]
[1643714540920,0.001,2760.0,2759.9,1.70643862]
[1643714541317,0.06746,2761.0,2759.9,1.70643862]
[1643714541318,0.74028738,2761.0,2759.9,1.70643862]
[1643714541522,0.69757239,2760.2,2759.9,1.70643862]
[1643714541719,0.69757239,2760.2,2759.9,0.7085]
[1643714542119,0.69757239,2760.2,2759.9,1.70643862]
[1643714542317,0.06743,2760.9,2760.1,0.99793862]
[1643714542529,3.98601,2761.4,2760.5,0.99793862]
[1643714542720,3.98601,2761.4,2760.5,2.29183862]
[1643714542721,0.43213215,2761.1,2760.5,2.29183862]
[1643714543020,1.43687186,2761.0,2760.5,0.7709]
[1643714543219,0.69366109,2760.8,2760.5,0.7709]
[1643714543460,0.69366109,2760.8,2759.9,0.19157]
[1643714543461,1.43686186,2760.7,2759.9,0.01]
[1643714543657,1.36947186,2760.6,2759.9,0.01]
[1643714543858,0.38469631,2760.4,2759.7,0.99793862]
[1643714544054,1.36947186,2760.3,2759.7,0.99793862]
[1643714544254,0.06736,2760.2,2759.7,0.99793862]
[1643714544453,0.67365872,2759.9,2759.7,0.99793862]
[1643714545068,1.04224301,2759.9,2759.5,0.99793862]
[1643714545459,1.34224301,2759.9,2759.5,0.99793862]
[1643714545658,0.67365872,2759.9,2759.6,0.99793862]
[1643714545868,0.67365872,2759.9,2759.7,1.17903862]
[1643714546061,0.67365872,2759.9,2759.7,0.99793862]
[1643714546657,1.03816706,2759.9,2759.7,0.99793862]
[1643714546858,0.67365872,2759.9,2759.7,0.99793862]
[1643714547716,0.67365872,2759.9,2759.1,1.32929997]
[1643714547717,0.67365872,2759.9,2759.5,0.99793862]
[1643714547911,0.67365872,2759.9,2759.3,0.99793862]
[1643714548712,0.38425836,2759.7,2759.3,0.99793862]
[1643714549117,0.06746,2759.8,2759.3,0.99793862]
[1643714549312,0.67365872,2759.9,2759.3,1.17903862]
[1643714549514,0.67365872,2759.9,2759.3,0.99793862]
[1643714550617,0.67365872,2759.9,2759.2,0.1811]
[1643714550820,1.07224604,2759.9,2759.6,0.99793862]
[1643714551047,1.07224604,2759.9,2759.4,0.3386187]
[1643714551048,0.06722,2760.3,2759.8,0.99793862]
[1643714551248,1.1387,2760.6,2759.8,0.99793862]
[1643714551448,1.43911799,2760.5,2759.8,0.99793862]
[1643714551647,1.37145799,2760.4,2759.8,0.99793862]
[1643714551851,0.06789,2760.3,2759.8,0.99793862]
[1643714552053,1.37145799,2760.2,2759.3,1.17903862]
[1643714552252,0.36811,2760.1,2759.3,1.17903862]
[1643714552452,1.37145799,2760.0,2759.3,1.17903862]
[1643714552652,0.36811,2760.1,2759.3,1.17903862]
[1643714552854,0.83301333,2759.5,2759.3,1.17903862]
[1643714553451,1.2043,2760.2,2759.3,1.17903862]
[1643714553652,1.44085946,2760.1,2759.3,1.17903862]
[1643714553853,0.3,2760.1,2759.3,0.1811]
[1643714554056,0.3,2760.1,2759.4,0.99793862]
[1643714554456,0.3,2760.1,2759.6,0.99793862]
[1643714554457,0.36768,2760.1,2759.6,0.99793862]
[1643714554698,0.3,2760.1,2759.6,0.99793862]
[1643714555299,0.43309836,2760.2,2759.6,0.99793862]
[1643714555498,0.3,2760.1,2759.6,0.99793862]
[1643714555902,0.73518671,2759.9,2759.6,0.99793862]
[1643714556100,0.73518671,2759.9,2759.6,0.94793862]
[1643714556514,0.43309836,2760.2,2759.6,0.94793862]
[1643714556707,0.43309836,2760.2,2759.7,0.1811]
[1643714556900,2.17855,2760.6,2759.7,0.1811]
[1643714557106,1.35018433,2760.5,2759.7,0.1811]
[1643714557401,1.41628433,2760.5,2759.7,0.1811]
[1643714557604,0.71309507,2760.3,2759.9,0.94793862]
[1643714558212,0.06855,2760.7,2760.1,0.94793862]
[1643714558213,1.35074534,2760.2,2760.1,0.94793862]
[1643714558463,0.06855,2760.7,2760.1,0.94793862]
[1643714558669,1.35130471,2760.6,2759.9,2.92817883]
[1643714558871,1.35130471,2760.6,2760.0,0.16426559]
[1643714559067,1.35130471,2760.6,2760.1,1.12903862]
[1643714559268,1.35130471,2760.6,2760.1,0.1811]
[1643714559470,0.06855,2760.7,2760.1,0.1811]
[1643714559869,0.06855,2760.7,2760.2,0.94793862]
[1643714560269,0.06855,2760.7,2760.4,0.39191864]
[1643714560471,0.82283232,2760.7,2760.4,0.39191864]
[1643714560681,0.35733196,2760.9,2760.4,0.39191864]
[1643714560879,0.35733196,2760.9,2760.3,0.1811]
[1643714561870,0.35733196,2760.9,2760.3,1.3594709]
[1643714562070,0.8333686,2760.5,2760.3,0.94793862]
[1643714563114,0.54124467,2761.0,2760.3,0.94793862]
[1643714563517,0.54124467,2761.0,2759.9,0.59419339]
[1643714563714,0.54124467,2761.0,2760.3,0.94793862]
[1643714564114,0.86295101,2760.5,2760.3,0.94793862]
[1643714564916,0.36414911,2760.4,2760.3,0.94793862]
[1643714566154,0.54124467,2761.0,2760.3,0.94793862]
[1643714566351,0.54124467,2761.0,2760.4,0.94793862]
[1643714566753,0.54124467,2761.0,2759.9,0.1811]
[1643714566953,0.54124467,2761.0,2760.2,0.94793862]
[1643714566954,0.06854,2760.9,2760.2,0.94793862]
[1643714567554,0.06854,2760.9,2760.7,0.94793862]
[1643714567757,0.06854,2760.9,2760.4,0.94793862]
[1643714567758,0.34006249,2760.8,2760.4,0.94793862]
[1643714567956,0.80670625,2760.5,2760.4,0.94793862]
[1643714568353,0.34006249,2760.8,2760.4,0.94793862]
[1643714568953,0.34006249,2760.8,2760.5,0.94793862]
[1643714569454,1.03323015,2760.8,2760.5,0.94793862]
[1643714570112,0.29006249,2760.8,2760.5,0.94793862]
[1643714570312,0.06854,2760.9,2760.5,0.94793862]
[1643714570915,0.54124467,2761.0,2760.7,0.94793862]
[1643714571113,1.41214643,2761.0,2760.4,0.1811]
[1643714571321,1.41214643,2761.0,2760.9,0.94793862]
[1643714571516,0.54124467,2761.0,2760.9,0.94793862]
[1643714571817,0.54124467,2761.0,2760.9,1.12950862]
[1643714572413,0.54124467,2761.0,2760.9,1.31040862]
[1643714572613,0.54124467,2761.0,2760.9,1.12950862]
[1643714574257,0.54124467,2761.0,2760.9,1.31040862]
[1643714574657,0.54124467,2761.0,2760.9,1.83340862]
[1643714574857,0.55724467,2761.0,2760.9,5.23340862]
[1643714575261,0.016,2761.0,2760.9,2.83340862]
[1643714575562,0.016,2761.0,2760.9,4.54877862]
[1643714576560,0.016,2761.0,2760.9,4.49877862]
[1643714577602,0.016,2761.0,2760.9,1.31040862]
[1643714577797,0.016,2761.0,2760.9,1.12883862]
[1643714577998,0.08458,2761.0,2760.9,1.12883862]
[1643714578202,0.016,2761.0,2760.9,1.12883862]
[1643714578407,0.90754115,2761.0,2760.9,0.1809]
[1643714578711,0.90754115,2761.0,2760.6,0.01]
[1643714578712,0.97608115,2761.0,2760.6,0.01]
[1643714578908,0.06852,2760.9,2760.7,0.94793862]
[1643714579104,0.06852,2760.9,2760.1,0.19371325]
[1643714579105,0.90754115,2761.0,2760.8,0.94793862]
[1643714579506,0.40223559,2760.9,2760.8,0.94793862]
[1643714579706,0.46963559,2760.9,2760.8,1.11316235]
[1643714580106,0.0674,2760.9,2760.8,1.11316235]
[1643714580977,0.90754115,2761.0,2760.8,0.1654469]
[1643714581165,0.90754115,2761.0,2760.4,0.94793862]
[1643714581166,0.06518,2760.9,2760.4,0.94793862]
[1643714581368,0.6765208,2760.5,2760.4,0.94793862]
[1643714581578,0.7405908,2760.5,2760.4,1.11345217]
[1643714581771,0.06407,2760.5,2760.4,1.11345217]
[1643714581974,0.32873191,2760.9,2760.4,1.11345217]
[1643714582471,0.06187,2760.8,2760.5,0.16551355]
[1643714582675,0.06187,2760.8,2760.7,0.01281595]
[1643714582676,7e-05,2760.8,2760.7,0.01281595]
[1643714582875,0.01246379,2761.0,2760.7,7.08581595]
[1643714583073,0.01246379,2761.0,2760.9,6.48157]
[1643714583272,0.01246379,2761.0,2760.9,8.11802217]
[1643714583472,0.01246379,2761.0,2760.9,9.45809043]
[1643714583674,0.01246379,2761.0,2760.9,2.97652043]
[1643714583986,0.01246379,2761.0,2760.9,4.96842043]
[1643714584177,0.01246379,2761.0,2760.9,5.08161483]
[1643714585103,0.01246379,2761.0,2760.9,4.44542043]
[1643714586204,0.01246379,2761.0,2760.9,4.26385043]
[1643714586807,0.01246379,2761.0,2760.9,4.44542043]
[1643714587401,0.01246379,2761.0,2760.9,5.14932043]
[1643714588948,6.379e-05,2761.0,2760.9,7.18655239]
[1643714589151,2.09555609,2761.5,2761.0,5.9]
[1643714589355,2.09555609,2761.5,2761.4,0.94793862]
[1643714589548,2.09555609,2761.5,2761.4,1.29502217]
[1643714589749,2.09555609,2761.5,2761.4,1.11345217]
[1643714589953,2.09555609,2761.5,2761.4,1.30108642]
[1643714590250,2.09555609,2761.5,2761.4,1.48265642]
[1643714590450,2.09555609,2761.5,2761.4,1.64638613]
[1643714590649,2.09555609,2761.5,2761.4,1.48265642]
[1643714591452,2.09555609,2761.5,2761.4,1.6463355]
[1643714591654,2.09555609,2761.5,2761.4,4.4772355]
[1643714591855,2.09555609,2761.5,2761.4,2.8272355]
[1643714592517,2.09555609,2761.5,2761.4,2.6463355]
[1643714592713,2.09555609,2761.5,2761.4,1.64621382]
[1643714592914,2.09555609,2761.5,2761.4,2.48265642]
[1643714593115,2.09555609,2761.5,2761.4,2.64620563]
[1643714593516,2.09555609,2761.5,2761.4,2.48265642]
[1643714593714,2.09555609,2761.5,2761.4,1.48265642]
[1643714594315,2.09555609,2761.5,2761.4,1.30108642]
[1643714594525,2.09555609,2761.5,2761.2,1.94301033]
[1643714594717,2.09555609,2761.5,2761.2,0.94301033]
[1643714595619,2.09555609,2761.5,2761.4,0.94301033]
[1643714595818,2.09555609,2761.5,2761.0,0.19157]
[1643714596047,2.09555609,2761.5,2761.2,0.33208106]
[1643714596246,2.09555609,2761.5,2761.1,0.94301033]
[1643714598454,1.6347965,2761.5,2761.1,0.94301033]
[1643714598856,2.5402365,2761.5,2761.1,0.94301033]
[1643714599256,2.5402365,2761.5,2760.8,0.38545616]
[1643714599257,2.5402365,2761.5,2760.8,0.94301033]
[1643714599457,3.4457265,2761.5,2760.8,0.94301033]
[1643714600108,0.82503116,2761.1,2760.8,0.94301033]
[1643714600308,0.82503116,2761.1,2760.8,1.35268147]
[1643714600507,0.82503116,2761.1,2760.8,0.94301033]
[1643714605357,0.90563,2761.2,2760.8,1.36528206]
[1643714605568,0.90559,2761.3,2760.8,1.36528206]
[1643714605569,0.90559,2761.3,2761.1,0.94301033]
[1643714605759,3.4460365,2761.5,2761.1,0.94301033]
[1643714605760,1.6347965,2761.5,2761.1,0.94301033]
[1643714606556,0.90643407,2761.4,2761.1,0.94301033]
[1643714606861,0.90643407,2761.4,2760.8,0.94301033]
[1643714607059,0.90643407,2761.4,2760.9,0.15564171]
[1643714607298,1.36084726,2761.3,2760.9,0.15564171]
[1643714607899,0.43458844,2761.0,2760.9,0.15564171]
[1643714608199,0.43458844,2761.0,2760.6,0.94301033]
[1643714608400,0.43458844,2761.0,2760.7,0.1558132]
[1643714609000,0.71965141,2760.8,2760.7,0.1558132]
[1643714609399,0.90564,2761.2,2760.7,0.1558132]
[1643714609603,1.6347965,2761.5,2761.0,0.94301033]
[1643714609802,1.36199483,2761.4,2760.8,0.94301033]
[1643714610007,1.36199483,2761.4,2760.9,0.15575146]
[1643714610405,0.89440704,2761.2,2760.9,0.15575146]
[1643714610606,1.80003704,2761.2,2760.9,0.15575146]
[1643714611053,1.80003704,2761.2,2761.0,0.15575146]
[1643714611254,1.80003704,2761.2,2760.6,0.94301033]
[1643714611457,1.36269499,2761.1,2760.7,0.1558761]
[1643714612062,1.36269499,2761.1,2760.5,0.01]
[1643714612063,0.05698966,2760.8,2760.5,0.01]
[1643714612259,1.66269499,2760.7,2760.5,0.01]
[1643714612460,6.4849711,2760.6,2759.6,2.0]
[1643714612660,0.90593,2760.4,2759.7,0.14524513]
[1643714612856,1.36269499,2760.3,2759.8,0.14524513]
[1643714613255,2.58472466,2760.3,2759.8,0.14524513]
[1643714613462,1.36269499,2760.2,2759.8,0.14524513]
[1643714613656,0.94296374,2760.1,2759.9,0.14524513]
[1643714613853,0.94296374,2760.1,2760.0,0.14524513]
[1643714614259,0.94296374,2760.1,2759.6,0.14524513]
[1643714614464,0.94296374,2760.1,2759.7,0.14524513]
[1643714614706,0.94296374,2760.1,2759.8,0.14524513]
[1643714614919,2.75509374,2760.1,2759.9,0.14524513]
[1643714615113,3.27809374,2760.1,2759.4,0.1811]
[1643714615710,0.92658398,2759.6,2759.4,0.1811]
[1643714615909,2.73896398,2759.6,2759.4,0.1811]
[1643714616510,0.523,2760.4,2759.5,0.94301033]
[1643714616727,3.0849,2760.9,2759.2,0.1811]
[1643714616728,4.7699,2760.8,2759.2,0.1811]
[1643714616908,1.2251,2760.7,2759.7,0.94301033]
[1643714617110,0.90595,2760.3,2759.4,0.94301033]
[1643714617314,0.90595,2760.3,2759.5,0.1811]
[1643714617509,0.78769344,2759.9,2759.5,0.1811]
[1643714617711,0.78769344,2759.9,2759.1,0.19157]
[1643714617712,0.78769344,2759.9,2759.2,0.1811]
[1643714618546,1.69381344,2759.9,2759.4,0.41152077]
[1643714618747,0.42325471,2759.8,2759.6,0.94301033]
[1643714619351,1.57696004,2759.9,2759.6,0.94301033]
[1643714619555,1.2363,2760.4,2759.2,0.1811]
[1643714619556,2.14225,2760.4,2759.8,0.94301033]
[1643714619754,2.14225,2760.4,2759.2,0.1811]
[1643714619755,0.90597,2760.3,2759.2,0.1811]
[1643714619956,0.90597,2760.3,2760.0,0.94301033]
[1643714620353,1.23261504,2760.3,2760.0,0.94301033]
[1643714620559,0.67288738,2760.2,2759.8,1.38927194]
[1643714621354,0.90597,2760.3,2759.8,0.44626161]
[1643714621653,0.90597,2760.3,2759.8,1.38927194]
[1643714621858,0.90595,2760.4,2760.0,0.94301033]
[1643714622302,0.90587,2760.6,2760.0,0.94301033]
[1643714622601,0.89822267,2760.3,2760.0,0.94301033]
[1643714622801,0.89822267,2760.3,2759.8,0.44626161]
[1643714622802,1.26508733,2760.3,2759.8,0.94301033]
[1643714623004,0.89822267,2760.3,2759.8,0.94301033]
[1643714624010,0.89822267,2760.3,2760.1,0.390761]
[1643714624210,0.9059,2760.4,2760.1,0.390761]
[1643714625608,0.9059,2760.4,2759.6,1.1811]
[1643714626258,0.81729478,2760.0,2759.6,0.1811]
[1643714626557,0.9059,2760.4,2759.9,0.94301033]
[1643714627158,0.9059,2760.4,2760.0,0.94301033]
[1643714627560,0.80907422,2760.3,2759.5,7.6311]
[1643714627766,0.80907422,2760.3,2760.0,0.94301033]
[1643714628560,0.80907422,2760.3,2759.5,7.44]
[1643714628761,0.31639967,2760.1,2759.6,0.44844832]
[1643714628964,0.31639967,2760.1,2759.6,0.1811]
[1643714629164,0.31639967,2760.1,2759.5,7.44]
[1643714630209,0.31639967,2760.1,2759.5,4.929]
[1643714630210,0.32401831,2760.1,2759.5,4.929]
[1643714630409,0.88272334,2759.6,2759.5,4.929]
[1643714630611,0.88272334,2759.6,2759.3,0.01]
[1643714631014,0.88272334,2759.6,2759.0,7.6211]
[1643714631210,0.88272334,2759.6,2759.0,7.44]
[1643714631611,0.88272334,2759.6,2759.1,0.94301033]
[1643714631612,1.78895334,2759.6,2759.1,0.94301033]
[1643714631814,0.90621,2759.5,2759.1,0.94301033]
[1643714632218,0.38803823,2759.3,2759.1,0.94301033]
[1643714632413,0.38803823,2759.3,2759.0,7.44]
[1643714632813,0.90621,2759.5,2759.0,7.44]
[1643714632814,0.78904153,2759.1,2759.0,7.44]
[1643714634055,0.78904153,2759.1,2759.0,7.80699895]
[1643714634259,0.90621,2759.5,2759.0,7.80699895]
[1643714635063,1.2268,2760.1,2759.3,0.94301033]
[1643714635263,0.94140407,2759.7,2759.3,0.94301033]
[1643714635864,1.35585659,2759.7,2759.0,7.80699895]
[1643714636063,1.35585659,2759.7,2759.1,1.04963944]
[1643714636267,1.35585659,2759.7,2759.2,0.10662911]
[1643714636464,0.94140407,2759.7,2759.2,0.10662911]
[1643714637214,1.24140407,2759.7,2759.2,0.10662911]
[1643714637815,0.94140407,2759.7,2759.2,0.10662911]
[1643714638821,0.80811855,2759.7,2759.2,0.10662911]
[1643714639016,0.41817716,2759.4,2759.2,0.10662911]
[1643714639218,0.41817716,2759.4,2759.3,0.10662911]
[1643714639616,1.10811855,2759.7,2759.3,0.10662911]
[1643714639820,1.10811855,2759.7,2759.4,0.103522]
[1643714640217,1.10811855,2759.7,2759.0,7.44]
[1643714640421,0.67745599,2759.2,2759.1,0.07654221]
[1643714640621,0.67745599,2759.2,2759.1,0.43476904]
[1643714641053,0.67745599,2759.2,2759.1,0.07654221]
[1643714641556,0.523,2759.5,2759.1,0.07654221]
[1643714642655,0.523,2759.5,2758.7,1.7424685]
[1643714642656,1.27158162,2759.4,2758.7,0.1812]
[1643714642857,1.27158162,2759.4,2758.8,0.07655659]
[1643714642858,0.01209857,2759.2,2758.8,0.07655659]
[1643714643053,0.01209857,2759.2,2758.6,0.01]
[1643714643054,0.523,2759.1,2758.7,5.659e-05]
[1643714643258,0.523,2759.1,2758.6,0.01]
[1643714643259,0.00621676,2758.9,2758.6,0.01]
[1643714643454,6.55,2758.7,2758.6,0.01]
[1643714643654,8.3949764,2758.7,2758.0,0.1812]
[1643714643856,8.6949764,2758.7,2758.0,0.1812]
[1643714644062,2.07653253,2758.7,2758.0,0.1812]
[1643714644257,2.07653253,2758.7,2757.7,0.1812]
[1643714644460,2.07653253,2758.7,2757.6,1.52980539]
[1643714644461,2.32653253,2758.7,2757.6,1.52980539]
[1643714644726,2.32653253,2758.7,2757.6,0.01]
[1643714644920,0.72004933,2758.1,2757.4,2.1812]
[1643714645123,0.72004933,2758.1,2757.9,0.32093738]
[1643714645320,0.523,2758.4,2757.9,0.32093738]
[1643714645720,0.523,2758.4,2757.4,0.1812]
[1643714645922,0.523,2758.4,2757.7,0.1812]
[1643714646122,0.523,2758.4,2757.4,0.1812]
[1643714646328,0.96380966,2758.3,2757.4,0.1812]
[1643714646525,0.05698966,2757.9,2757.1,0.01]
[1643714646731,1.1990886,2757.8,2757.1,0.01]
[1643714646922,1.1990886,2757.8,2756.7,0.45759994]
[1643714646923,2.00023202,2757.8,2756.7,0.45759994]
[1643714647123,1.92414342,2757.8,2756.9,0.32716603]
[1643714647324,1.92414342,2757.8,2756.9,1.27017636]
[1643714647325,1.32414342,2757.8,2756.9,1.27017636]
[1643714647524,1.3201,2757.8,2757.0,0.1812]
[1643714647929,1.2414,2758.3,2757.5,0.94301033]
[1643714648128,0.9257008,2757.9,2757.8,0.40784487]
[1643714649153,3.2475,2758.4,2757.8,0.40784487]
[1643714649362,4.33132853,2758.7,2757.8,0.40784487]
[1643714649553,0.54732853,2758.7,2757.8,1.3508552]
[1643714649759,0.39140579,2758.6,2757.8,1.3508552]
[1643714649958,0.54732853,2758.7,2757.8,1.3508552]
[1643714650259,0.84661008,2758.4,2757.8,1.3508552]
[1643714650460,0.84661008,2758.4,2757.9,0.1812]
[1643714650661,0.54732853,2758.7,2757.9,0.1812]
[1643714651059,0.54732853,2758.7,2758.3,0.40515668]
[1643714651261,0.54732853,2758.7,2757.9,0.1812]
[1643714651462,0.54732853,2758.7,2757.6,0.94301033]
[1643714651664,0.54732853,2758.7,2757.5,0.1812]
[1643714651869,0.523,2759.1,2757.8,0.01251985]
[1643714652067,0.523,2759.1,2757.9,0.1812]
[1643714652316,0.523,2759.1,2758.4,0.94301033]
[1643714652510,0.523,2759.1,2758.5,0.1812]
[1643714652714,0.523,2759.1,2759.0,0.32947364]
[1643714652913,1.4701971,2759.1,2759.0,0.32947364]
[1643714653115,1.4701971,2759.1,2758.5,0.1812]
[1643714654523,2.0201971,2759.1,2758.5,0.1812]
[1643714654720,0.90658,2759.0,2758.5,0.1812]
[1643714654916,0.523,2758.9,2758.5,0.1812]
[1643714655315,0.823,2758.9,2758.5,0.1812]
[1643714655517,0.74931303,2758.6,2758.5,0.5399508]
[1643714656460,0.74931303,2758.6,2758.5,0.3587508]
[1643714657862,0.523,2758.9,2758.5,0.3587508]
[1643714658264,5.62956,2759.8,2758.5,0.3587508]
[1643714658265,0.523,2759.5,2758.5,0.3587508]
[1643714658462,0.05698966,2759.3,2758.5,0.3587508]
[1643714658663,0.523,2759.2,2758.5,0.3587508]
[1643714660006,1.36820027,2759.2,2758.6,0.1812]
[1643714660608,1.36820027,2759.2,2758.3,8.38301033]
[1643714661207,1.8128954,2759.8,2758.3,7.44]
[1643714661208,0.9064054,2759.8,2758.3,7.44]
[1643714661508,0.523,2759.7,2758.8,0.94301033]
[1643714661707,0.523,2759.7,2758.4,0.19363375]
[1643714661909,0.523,2759.7,2758.4,1.13664408]
[1643714662116,1.00543417,2759.7,2759.2,0.35374886]
[1643714662407,1.00543417,2759.7,2759.1,0.39238958]
[1643714662408,0.6361944,2759.7,2759.1,0.39238958]
[1643714662609,0.77893511,2759.3,2759.1,0.39238958]
[1643714662809,1.30193511,2759.3,2758.4,0.19363375]
[1643714663007,0.55,2759.2,2758.3,8.38301033]
[1643714663206,0.25,2759.2,2758.3,8.38301033]
[1643714663473,1.30193511,2759.3,2758.5,0.94301033]
[1643714663662,1.79430916,2759.2,2758.5,0.94301033]
[1643714663864,0.3,2759.2,2758.5,0.94301033]
[1643714664061,0.3,2759.2,2759.1,0.39756877]
[1643714665069,1.30193511,2759.3,2759.1,0.39756877]
[1643714665570,0.3,2759.2,2758.3,8.38301033]
[1643714665771,0.55,2759.2,2758.3,8.38301033]
[1643714666573,0.71094669,2758.8,2758.3,8.38301033]
[1643714667072,0.71094669,2758.8,2758.3,7.44]
[1643714667073,1.01094669,2758.8,2758.3,7.44]
[1643714667814,1.00128952,2758.8,2758.3,7.44]
[1643714668616,1.00128952,2758.8,2758.3,8.38301033]
[1643714668815,1.01094669,2758.8,2758.3,8.38301033]
[1643714669015,0.823,2758.8,2758.4,0.38298043]
[1643714670421,0.823,2758.8,2758.3,7.44]
[1643714670422,0.87998966,2758.8,2758.3,7.44]
[1643714670628,2.40442978,2758.7,2758.0,0.1812]
[1643714670824,0.3,2758.4,2758.0,0.1812]
[1643714671054,0.823,2758.4,2758.0,0.1812]
[1643714671457,0.823,2758.4,2758.1,0.36025907]
[1643714672857,1.123,2758.4,2758.1,0.36025907]
[1643714673660,2.08674956,2758.4,2757.9,0.01]
[1643714673860,2.0297599,2758.4,2757.9,0.01]
[1643714674258,0.00386936,2758.3,2757.9,0.01]
[1643714674459,0.523,2758.2,2757.9,0.01]
[1643714674729,0.3,2758.1,2757.9,0.01]
[1643714674937,0.823,2758.1,2757.9,0.01]
[1643714675242,0.823,2758.1,2757.8,7.44]
[1643714675434,0.823,2758.1,2758.0,0.41115186]
[1643714675839,0.523,2758.1,2758.0,0.41115186]
[1643714676036,2.83053869,2759.1,2758.0,0.48773163]
[1643714676235,0.523,2758.8,2758.1,0.1812]
[1643714676437,1.50032273,2758.7,2758.2,0.07657487]
[1643714676839,2.09008264,2758.9,2758.5,0.40381883]
[1643714677134,0.87505124,2758.6,2758.0,0.1812]
[1643714677337,0.87505124,2758.6,2758.1,0.07657345]
[1643714677537,0.87505124,2758.6,2757.7,0.94301033]
[1643714677538,0.87505124,2758.6,2758.2,0.07657345]
[1643714677740,0.87505124,2758.6,2757.8,0.1812]
[1643714677939,0.87505124,2758.6,2757.9,0.07657384]
[1643714678137,0.87505124,2758.6,2758.0,0.1812]
[1643714678468,3.98867713,2758.9,2758.1,0.07657384]
[1643714678671,1.80156267,2758.8,2758.1,0.07657384]
[1643714678872,1.50156267,2758.7,2758.1,0.07657384]
[1643714679070,1.80156267,2758.7,2758.1,0.07657384]
[1643714679271,1.19941261,2758.7,2758.6,0.40363959]
[1643714679471,0.3,2758.7,2758.6,0.40363959]
[1643714679674,0.54804031,2759.0,2758.6,1.34664992]
[1643714679878,5.42153291,2759.4,2758.6,1.34664992]
[1643714679879,1.50349379,2758.9,2758.6,1.34664992]
[1643714680079,2.59291869,2759.5,2758.6,1.34664992]
[1643714680288,1.50360321,2759.4,2758.7,0.07656439]
[1643714680879,1.50360321,2759.4,2759.2,0.34427799]
[1643714681079,0.87172591,2759.3,2759.2,0.34427799]
[1643714681278,0.87172591,2759.3,2758.4,0.94301033]
[1643714681279,2.37532912,2759.3,2758.4,0.94301033]
[1643714681479,1.50360321,2759.2,2758.5,0.25776638]
[1643714681679,1.50360321,2759.2,2758.6,0.07656638]
[1643714681881,1.50360321,2759.2,2758.7,0.1812]
[1643714682083,1.50360321,2759.2,2758.5,0.1812]
[1643714682307,1.80360321,2759.2,2758.6,0.07656665]
[1643714682506,1.50360321,2759.1,2758.9,0.34669592]
[1643714682708,1.49394604,2759.1,2758.9,0.34669592]
[1643714684107,1.79394604,2759.1,2758.9,0.34669592]
[1643714684312,0.87172591,2759.3,2758.9,0.41656646]
[1643714684512,1.17172591,2759.3,2758.9,0.41656646]
[1643714684712,1.17172591,2759.3,2758.5,0.1812]
[1643714685215,0.90645,2759.2,2758.5,0.1812]
[1643714685812,2.99332577,2759.2,2759.0,0.34165453]
[1643714686061,0.90645,2759.2,2758.5,0.1812]
[1643714686262,3.06968907,2759.2,2758.5,0.1812]
[1643714686664,0.9064942,2759.1,2758.2,7.44]
[1643714686868,0.90661,2758.9,2758.2,7.44]
[1643714687062,2.68025288,2758.8,2758.2,7.44]
[1643714687262,0.82700789,2758.5,2758.3,0.31264221]
[1643714688268,0.523,2758.8,2758.3,0.31264221]
[1643714689367,0.78115823,2758.7,2758.3,0.31264221]
[1643714690014,0.78115823,2758.7,2758.4,0.1812]
[1643714690826,0.523,2759.1,2758.4,0.1812]
[1643714691014,0.9065392,2759.0,2758.2,0.94301033]
[1643714691617,0.87451663,2759.1,2758.2,0.94301033]
[1643714691815,0.88677683,2758.8,2758.2,0.94301033]
[1643714692215,0.87451663,2759.1,2758.7,0.37944686]
[1643714692717,0.823,2759.1,2758.7,0.37944686]
[1643714693476,0.85612587,2759.0,2758.7,0.37944686]
[1643714693870,1.15612587,2759.0,2758.7,0.37944686]
[1643714694971,1.15612587,2759.0,2758.4,7.44]
[1643714695271,2.06265107,2759.0,2758.4,7.44]
[1643714695871,1.76265107,2759.0,2758.4,7.44]
[1643714696076,1.76265107,2759.0,2758.9,0.44957957]
[1643714696571,2.06265107,2759.0,2758.4,7.44]
[1643714697209,1.2065252,2759.0,2758.4,7.44]
[1643714697414,0.9065252,2759.0,2758.4,7.44]
[1643714697613,0.523,2759.1,2758.5,0.94301033]